[Event "Early-Titled-Tuesday-Blitz-February-27-2024"]
[Site "Chess.com"]
[Date "2024.02.27"]
[Round "7"]
[White "TioCridineno"]
[Black "sewlins"]
[Result "1-0"]
[WhiteElo "2403"]
[BlackElo "2158"]
[TimeControl "180+1"]
[EndTime "9:16:49 PST"]
[Termination "TioCridineno won on time"]

1. e4 {[%clk 0:03:00.9]} 1... c5 {[%clk 0:02:59.1]} 2. Nf3 {[%clk 0:03:01]} 2...
d6 {[%clk 0:02:59.7]} 3. c3 {[%clk 0:02:59.8]} 3... Nf6 {[%clk 0:02:55.9]} 4.
Be2 {[%clk 0:02:59.8]} 4... g6 {[%clk 0:02:30.1]} 5. Bd3 {[%clk 0:02:59.3]} 5...
Bg7 {[%clk 0:02:29]} 6. h3 {[%clk 0:02:58.6]} 6... O-O {[%clk 0:02:17.1]} 7. O-O
{[%clk 0:02:58.2]} 7... d5 {[%clk 0:02:11.8]} 8. exd5 {[%clk 0:02:37.4]} 8...
Nxd5 {[%clk 0:02:12.7]} 9. Bc4 {[%clk 0:02:34.9]} 9... Nc6 {[%clk 0:02:11.3]}
10. d3 {[%clk 0:02:34]} 10... b6 {[%clk 0:01:55.2]} 11. Qe2 {[%clk 0:02:32]}
11... Bb7 {[%clk 0:01:54.4]} 12. a4 {[%clk 0:02:30.2]} 12... Qd6 {[%clk
0:01:48.2]} 13. Re1 {[%clk 0:02:25.9]} 13... Rad8 {[%clk 0:01:41.3]} 14. Na3
{[%clk 0:02:25.1]} 14... e6 {[%clk 0:01:34.2]} 15. Bg5 {[%clk 0:02:14.9]} 15...
Rd7 {[%clk 0:01:27.4]} 16. Rad1 {[%clk 0:02:13.8]} 16... h6 {[%clk 0:01:26]} 17.
Bc1 {[%clk 0:02:12.4]} 17... a6 {[%clk 0:01:21]} 18. Ba2 {[%clk 0:02:10.8]}
18... Nf4 {[%clk 0:01:16]} 19. Bxf4 {[%clk 0:02:10.2]} 19... Qxf4 {[%clk
0:01:15]} 20. Nc4 {[%clk 0:02:09.9]} 20... b5 {[%clk 0:01:04.4]} 21. axb5 {[%clk
0:02:09.3]} 21... axb5 {[%clk 0:01:05.3]} 22. Ne3 {[%clk 0:02:09.2]} 22... Ra8
{[%clk 0:00:59.3]} 23. Bb1 {[%clk 0:02:07.8]} 23... Ne5 {[%clk 0:00:55.3]} 24.
Nxe5 {[%clk 0:01:59.7]} 24... Bxe5 {[%clk 0:00:55.7]} 25. Nf1 {[%clk 0:01:59.6]}
25... Bc7 {[%clk 0:00:45.3]} 26. Qg4 {[%clk 0:01:53.1]} 26... Qf6 {[%clk
0:00:30.6]} 27. h4 {[%clk 0:01:46.4]} 27... Ra4 {[%clk 0:00:31]} 28. d4 {[%clk
0:01:38]} 28... cxd4 {[%clk 0:00:31.4]} 29. Bc2 {[%clk 0:01:37.9]} 29... Rc4
{[%clk 0:00:26.8]} 30. Bb3 {[%clk 0:01:37.9]} 30... Rc5 {[%clk 0:00:18.2]} 31.
Ng3 {[%clk 0:01:30.7]} 31... h5 {[%clk 0:00:13.2]} 32. Qe2 {[%clk 0:01:23.8]}
32... Qxh4 {[%clk 0:00:09.2]} 33. cxd4 {[%clk 0:01:23.7]} 33... Rg5 {[%clk
0:00:08.3]} 34. Rd3 {[%clk 0:01:20]} 34... Bd5 {[%clk 0:00:03]} 35. Rc1 {[%clk
0:01:08.6]} 35... Bxg3 {[%clk 0:00:02.9]} 36. fxg3 {[%clk 0:01:08]} 36... Rxg3
{[%clk 0:00:03.7]} 37. Rxg3 {[%clk 0:01:06.5]} 37... Qxg3 {[%clk 0:00:03.8]} 38.
Rc3 {[%clk 0:01:01.4]} 38... Qg5 {[%clk 0:00:03]} 39. Bc2 {[%clk 0:00:46.6]}
39... Bc4 {[%clk 0:00:03.2]} 40. Qf2 {[%clk 0:00:46.2]} 40... Qd5 {[%clk
0:00:03.3]} 41. b3 {[%clk 0:00:44.2]} 41... b4 {[%clk 0:00:01.7]} 42. Rxc4
{[%clk 0:00:43.8]} 42... e5 {[%clk 0:00:01.9]} 43. dxe5 {[%clk 0:00:42.1]} 43...
Qxe5 {[%clk 0:00:02.8]} 44. Rxb4 {[%clk 0:00:33.1]} 44... Qa1+ {[%clk
0:00:02.9]} 45. Kh2 {[%clk 0:00:32.7]} 45... Qe5+ {[%clk 0:00:02.6]} 46. Qg3
{[%clk 0:00:32.9]} 46... Qc5 {[%clk 0:00:02.1]} 47. Rc4 {[%clk 0:00:32]} 1-0

[Event "Early-Titled-Tuesday-Blitz-February-27-2024"]
[Site "Chess.com"]
[Date "2024.02.27"]
[Round "7"]
[White "SlavenPastar"]
[Black "Kopytkin"]
[Result "1-0"]
[WhiteElo "2624"]
[BlackElo "2465"]
[TimeControl "180+1"]
[EndTime "9:16:50 PST"]
[Termination "SlavenPastar won by resignation"]

1. b3 {[%clk 0:03:00.9]} 1... e5 {[%clk 0:02:51.2]} 2. Bb2 {[%clk 0:03:01.5]}
2... Nc6 {[%clk 0:02:51]} 3. Nf3 {[%clk 0:03:02.1]} 3... f6 {[%clk 0:02:48.9]}
4. e3 {[%clk 0:03:00.7]} 4... d5 {[%clk 0:02:48.3]} 5. d4 {[%clk 0:02:58.2]}
5... e4 {[%clk 0:02:47.8]} 6. Ng1 {[%clk 0:02:57.6]} 6... f5 {[%clk 0:02:45.4]}
7. c4 {[%clk 0:02:57.1]} 7... Nf6 {[%clk 0:02:45.5]} 8. Nc3 {[%clk 0:02:56.2]}
8... Be6 {[%clk 0:02:45.4]} 9. Nge2 {[%clk 0:02:49.5]} 9... Bd6 {[%clk
0:02:36.2]} 10. cxd5 {[%clk 0:02:43.4]} 10... Nxd5 {[%clk 0:02:35.5]} 11. Nxd5
{[%clk 0:02:43.1]} 11... Bxd5 {[%clk 0:02:35.8]} 12. Nc3 {[%clk 0:02:41.2]}
12... Bf7 {[%clk 0:02:20.3]} 13. Be2 {[%clk 0:02:32.3]} 13... O-O {[%clk
0:02:19.7]} 14. O-O {[%clk 0:02:31.5]} 14... Qh4 {[%clk 0:02:02]} 15. g3 {[%clk
0:02:30.1]} 15... Qh3 {[%clk 0:02:02.4]} 16. Nb5 {[%clk 0:02:06.9]} 16... Rfd8
{[%clk 0:01:53.7]} 17. Re1 {[%clk 0:02:05.5]} 17... Bb4 {[%clk 0:01:24.3]} 18.
Bf1 {[%clk 0:02:03.9]} 18... Qh5 {[%clk 0:01:18.7]} 19. Qxh5 {[%clk 0:01:56.9]}
19... Bxh5 {[%clk 0:01:19.6]} 20. Rec1 {[%clk 0:01:55.2]} 20... Rac8 {[%clk
0:01:12.4]} 21. d5 {[%clk 0:01:42.1]} 21... Rxd5 {[%clk 0:00:51.2]} 22. Bc4
{[%clk 0:01:40.3]} 22... Bf7 {[%clk 0:00:51.6]} 23. Bxd5 {[%clk 0:01:36.5]}
23... Bxd5 {[%clk 0:00:52.5]} 24. Rd1 {[%clk 0:01:24]} 24... Be6 {[%clk
0:00:52.1]} 25. a3 {[%clk 0:01:19.4]} 25... Be7 {[%clk 0:00:50.7]} 26. b4 {[%clk
0:01:16.2]} 26... Bb3 {[%clk 0:00:36.9]} 27. Rd2 {[%clk 0:01:14.8]} 27... Bc4
{[%clk 0:00:34.3]} 28. Nd4 {[%clk 0:01:10.4]} 28... Ne5 {[%clk 0:00:34.1]} 29.
Nxf5 {[%clk 0:01:01.1]} 29... Nf3+ {[%clk 0:00:33.6]} 30. Kg2 {[%clk 0:00:58.6]}
30... Bf8 {[%clk 0:00:20.1]} 31. Rd7 {[%clk 0:00:53]} 31... Be6 {[%clk
0:00:19.8]} 32. Ne7+ {[%clk 0:00:52]} 32... Kf7 {[%clk 0:00:15.8]} 33. Nxc8+
{[%clk 0:00:50.1]} 33... Bxd7 {[%clk 0:00:16.2]} 34. Nxa7 {[%clk 0:00:50.3]}
34... Nd2 {[%clk 0:00:13.7]} 35. Rd1 {[%clk 0:00:38.4]} 35... Nc4 {[%clk
0:00:13.3]} 36. Rxd7+ {[%clk 0:00:36.3]} 36... Ke8 {[%clk 0:00:13.9]} 37. Rxc7
{[%clk 0:00:27.1]} 37... Nxb2 {[%clk 0:00:14]} 38. Rxb7 {[%clk 0:00:27]} 38...
Nc4 {[%clk 0:00:13.9]} 39. a4 {[%clk 0:00:21.7]} 39... h6 {[%clk 0:00:13.7]} 40.
b5 {[%clk 0:00:20.4]} 40... Nd6 {[%clk 0:00:13.2]} 41. Rb8+ {[%clk 0:00:18.6]}
41... Kf7 {[%clk 0:00:12.6]} 42. Nc6 {[%clk 0:00:18.2]} 42... g5 {[%clk
0:00:10.1]} 43. a5 {[%clk 0:00:17.8]} 43... Bg7 {[%clk 0:00:09.3]} 44. a6 {[%clk
0:00:18]} 44... h5 {[%clk 0:00:08.3]} 45. a7 {[%clk 0:00:18.2]} 45... h4 {[%clk
0:00:09.2]} 46. gxh4 {[%clk 0:00:17.6]} 46... gxh4 {[%clk 0:00:09.1]} 47. a8=Q
{[%clk 0:00:17.5]} 1-0

[Event "Early-Titled-Tuesday-Blitz-February-27-2024"]
[Site "Chess.com"]
[Date "2024.02.27"]
[Round "7"]
[White "Kev4444444444"]
[Black "anasta10"]
[Result "1-0"]
[WhiteElo "2344"]
[BlackElo "2522"]
[TimeControl "180+1"]
[EndTime "9:16:51 PST"]
[Termination "Kev4444444444 won on time"]

1. d4 {[%clk 0:02:59.1]} 1... Nf6 {[%clk 0:02:55.6]} 2. c4 {[%clk 0:02:55.6]}
2... g6 {[%clk 0:02:54.2]} 3. Nc3 {[%clk 0:02:54.8]} 3... c5 {[%clk 0:02:53.1]}
4. d5 {[%clk 0:02:52.4]} 4... d6 {[%clk 0:02:52.8]} 5. e4 {[%clk 0:02:50.7]}
5... Bg7 {[%clk 0:02:53.2]} 6. Bd3 {[%clk 0:02:48.3]} 6... e6 {[%clk 0:02:52]}
7. Nf3 {[%clk 0:02:44]} 7... O-O {[%clk 0:02:50.8]} 8. O-O {[%clk 0:02:42.5]}
8... exd5 {[%clk 0:02:50.1]} 9. cxd5 {[%clk 0:02:42.3]} 9... Bg4 {[%clk
0:02:50.6]} 10. Bf4 {[%clk 0:02:38.8]} 10... a6 {[%clk 0:02:46.3]} 11. a4 {[%clk
0:02:33.4]} 11... Qe7 {[%clk 0:02:42.7]} 12. h3 {[%clk 0:02:28.1]} 12... Bxf3
{[%clk 0:02:41.7]} 13. Qxf3 {[%clk 0:02:28.1]} 13... Nbd7 {[%clk 0:02:42.3]} 14.
Qg3 {[%clk 0:02:14.6]} 14... Ne5 {[%clk 0:02:32.6]} 15. Bxe5 {[%clk 0:02:13.7]}
15... dxe5 {[%clk 0:02:33.3]} 16. Qe3 {[%clk 0:02:04.8]} 16... Rac8 {[%clk
0:02:22.3]} 17. a5 {[%clk 0:02:04.1]} 17... Ne8 {[%clk 0:02:18.9]} 18. Na4
{[%clk 0:01:55.2]} 18... Nd6 {[%clk 0:02:18.5]} 19. Nxc5 {[%clk 0:01:44.8]}
19... Bh6 {[%clk 0:01:52.7]} 20. Qxh6 {[%clk 0:01:40.9]} 20... Rxc5 {[%clk
0:01:53.3]} 21. Rac1 {[%clk 0:01:38.1]} 21... Rfc8 {[%clk 0:01:52.9]} 22. b4
{[%clk 0:01:27.8]} 22... Rc3 {[%clk 0:01:51.9]} 23. Rxc3 {[%clk 0:01:02.4]}
23... Rxc3 {[%clk 0:01:51.2]} 24. Bb1 {[%clk 0:00:58.7]} 24... Nb5 {[%clk
0:01:40.6]} 25. f4 {[%clk 0:00:56.1]} 25... Qxb4 {[%clk 0:01:29.2]} 26. f5
{[%clk 0:00:41.8]} 26... Qc5+ {[%clk 0:01:04.5]} 27. Kh2 {[%clk 0:00:39.4]}
27... Qf8 {[%clk 0:00:44.9]} 28. Qh4 {[%clk 0:00:39.5]} 28... Rc8 {[%clk
0:00:36.6]} 29. f6 {[%clk 0:00:32.1]} 29... Nd6 {[%clk 0:00:32.6]} 30. Bd3
{[%clk 0:00:28]} 30... h6 {[%clk 0:00:32.2]} 31. Rf3 {[%clk 0:00:25.1]} 31...
Kh7 {[%clk 0:00:30.4]} 32. Qg3 {[%clk 0:00:23.6]} 32... Re8 {[%clk 0:00:26.5]}
33. h4 {[%clk 0:00:23.3]} 33... h5 {[%clk 0:00:17.4]} 34. Bb1 {[%clk 0:00:21.5]}
34... Qh6 {[%clk 0:00:14.2]} 35. Rb3 {[%clk 0:00:20]} 35... Qc1 {[%clk
0:00:09.8]} 36. Rb6 {[%clk 0:00:19.2]} 36... Qc5 {[%clk 0:00:09.4]} 37. Qf3
{[%clk 0:00:16.1]} 37... Nc4 {[%clk 0:00:09]} 38. Rxb7 {[%clk 0:00:14.7]} 38...
Rf8 {[%clk 0:00:09.4]} 39. Qh3 {[%clk 0:00:12]} 39... Nd2 {[%clk 0:00:08]} 40.
Bd3 {[%clk 0:00:10.7]} 40... Qc3 {[%clk 0:00:05.4]} 41. Bxa6 {[%clk 0:00:08.7]}
41... Qc1 {[%clk 0:00:03.3]} 42. Qd3 {[%clk 0:00:07.1]} 1-0

[Event "Early-Titled-Tuesday-Blitz-February-27-2024"]
[Site "Chess.com"]
[Date "2024.02.27"]
[Round "7"]
[White "FoggyMorning"]
[Black "Hovik_Hayrapetyan"]
[Result "1-0"]
[WhiteElo "2655"]
[BlackElo "2865"]
[TimeControl "180+1"]
[EndTime "9:16:52 PST"]
[Termination "FoggyMorning won by resignation"]

1. e4 {[%clk 0:03:00.9]} 1... f6 {[%clk 0:03:00.8]} 2. Nf3 {[%clk 0:02:57.3]}
2... c5 {[%clk 0:02:52.3]} 3. d4 {[%clk 0:02:55.2]} 3... cxd4 {[%clk 0:02:52]}
4. Nxd4 {[%clk 0:02:56.1]} 4... Nc6 {[%clk 0:02:48.6]} 5. Nc3 {[%clk 0:02:54.7]}
5... a6 {[%clk 0:02:37.2]} 6. Bc4 {[%clk 0:02:48.6]} 6... e6 {[%clk 0:02:37.1]}
7. a4 {[%clk 0:02:41.4]} 7... Qc7 {[%clk 0:02:33.1]} 8. Bb3 {[%clk 0:02:35.1]}
8... Nxd4 {[%clk 0:02:30]} 9. Qxd4 {[%clk 0:02:36]} 9... Bc5 {[%clk 0:02:29.9]}
10. Qd3 {[%clk 0:02:33.8]} 10... Ne7 {[%clk 0:02:29.4]} 11. O-O {[%clk
0:02:26.1]} 11... b6 {[%clk 0:02:25.9]} 12. Be3 {[%clk 0:02:22.8]} 12... Bxe3
{[%clk 0:02:23.7]} 13. Qxe3 {[%clk 0:02:23.7]} 13... Bb7 {[%clk 0:02:24]} 14.
Rad1 {[%clk 0:02:22.6]} 14... Bc6 {[%clk 0:02:22.2]} 15. Ne2 {[%clk 0:02:17.5]}
15... O-O {[%clk 0:02:18.4]} 16. Nd4 {[%clk 0:02:05.7]} 16... Kh8 {[%clk
0:02:17.6]} 17. Rd2 {[%clk 0:01:47.5]} 17... f5 {[%clk 0:02:13.6]} 18. Nxc6
{[%clk 0:01:29]} 18... Qxc6 {[%clk 0:02:11.5]} 19. Re1 {[%clk 0:01:22.8]} 19...
Rad8 {[%clk 0:01:55.1]} 20. Qd3 {[%clk 0:01:16]} 20... Ng6 {[%clk 0:01:47.4]}
21. exf5 {[%clk 0:01:09.4]} 21... Nh4 {[%clk 0:01:44.6]} 22. Re4 {[%clk
0:00:37.6]} 22... Nxg2 {[%clk 0:01:25.7]} 23. fxe6 {[%clk 0:00:32.6]} 23... Rde8
{[%clk 0:01:14.2]} 24. Kxg2 {[%clk 0:00:28.4]} 24... dxe6 {[%clk 0:01:09.1]} 25.
f3 {[%clk 0:00:27]} 25... Qc5 {[%clk 0:01:01.9]} 26. Qe3 {[%clk 0:00:26.8]}
26... Qh5 {[%clk 0:01:00.8]} 27. Rxe6 {[%clk 0:00:17.1]} 27... Rxe6 {[%clk
0:00:59]} 28. Bxe6 {[%clk 0:00:18]} 28... Qg6+ {[%clk 0:00:58.6]} 29. Kf2 {[%clk
0:00:16.1]} 29... Qh5 {[%clk 0:00:56.7]} 30. h3 {[%clk 0:00:14.9]} 30... Qh4+
{[%clk 0:00:52.7]} 31. Kg2 {[%clk 0:00:14.2]} 31... h6 {[%clk 0:00:48.8]} 32.
Rd4 {[%clk 0:00:11.9]} 32... Qf6 {[%clk 0:00:47.5]} 33. c3 {[%clk 0:00:10]}
33... Qg6+ {[%clk 0:00:46.5]} 34. Kh2 {[%clk 0:00:08.4]} 34... Qc2+ {[%clk
0:00:42.7]} 35. Rd2 {[%clk 0:00:08.7]} 35... Qxa4 {[%clk 0:00:42.7]} 36. Bd5
{[%clk 0:00:07.7]} 36... Qh4 {[%clk 0:00:38.9]} 37. Rd4 {[%clk 0:00:06.9]} 37...
Qf6 {[%clk 0:00:38.6]} 38. Re4 {[%clk 0:00:06]} 38... Qd6+ {[%clk 0:00:36.9]}
39. Re5 {[%clk 0:00:06.6]} 39... g5 {[%clk 0:00:29.2]} 40. Kg2 {[%clk
0:00:06.2]} 40... Qg6 {[%clk 0:00:21.9]} 41. Qd4 {[%clk 0:00:05.6]} 41... Rf6
{[%clk 0:00:12.7]} 42. Re6 {[%clk 0:00:04.8]} 42... Qc2+ {[%clk 0:00:13]} 43.
Kg3 {[%clk 0:00:03.9]} 43... Kh7 {[%clk 0:00:09.9]} 44. Be4+ {[%clk 0:00:03.7]}
44... Qxe4 {[%clk 0:00:10]} 45. Qxe4+ {[%clk 0:00:04.6]} 1-0

[Event "Early-Titled-Tuesday-Blitz-February-27-2024"]
[Site "Chess.com"]
[Date "2024.02.27"]
[Round "7"]
[White "jraosam"]
[Black "Rawnsdale"]
[Result "1-0"]
[WhiteElo "1968"]
[BlackElo "2512"]
[TimeControl "180+1"]
[EndTime "9:16:52 PST"]
[Termination "jraosam won on time"]

1. Nf3 {[%clk 0:03:00.9]} 1... d5 {[%clk 0:02:59.2]} 2. c4 {[%clk 0:02:59.2]}
2... e6 {[%clk 0:03:00.1]} 3. e3 {[%clk 0:02:58]} 3... Nf6 {[%clk 0:02:59.5]} 4.
b3 {[%clk 0:02:56.6]} 4... Be7 {[%clk 0:02:59.4]} 5. Bb2 {[%clk 0:02:56.1]} 5...
O-O {[%clk 0:02:59.4]} 6. Be2 {[%clk 0:02:54.2]} 6... Nbd7 {[%clk 0:02:58.3]} 7.
O-O {[%clk 0:02:53.2]} 7... b6 {[%clk 0:02:58.7]} 8. Ne5 {[%clk 0:02:52.6]} 8...
Bb7 {[%clk 0:02:58.7]} 9. Nxd7 {[%clk 0:02:50]} 9... Nxd7 {[%clk 0:02:57.1]} 10.
cxd5 {[%clk 0:02:49]} 10... exd5 {[%clk 0:02:56.9]} 11. d4 {[%clk 0:02:48.5]}
11... Bf6 {[%clk 0:02:54.6]} 12. Nd2 {[%clk 0:02:47.7]} 12... c5 {[%clk
0:02:54.8]} 13. Nf3 {[%clk 0:02:47.5]} 13... Re8 {[%clk 0:02:55]} 14. Qd2 {[%clk
0:02:46.8]} 14... Rc8 {[%clk 0:02:51.3]} 15. Rac1 {[%clk 0:02:46.6]} 15... Nf8
{[%clk 0:02:47.5]} 16. Rfd1 {[%clk 0:02:46.5]} 16... Ne6 {[%clk 0:02:47.2]} 17.
Bb5 {[%clk 0:02:45.4]} 17... Re7 {[%clk 0:02:40.6]} 18. dxc5 {[%clk 0:02:36.1]}
18... Bxb2 {[%clk 0:02:38.6]} 19. Qxb2 {[%clk 0:02:34.5]} 19... bxc5 {[%clk
0:02:38.4]} 20. Be2 {[%clk 0:02:26.6]} 20... Qb6 {[%clk 0:02:23.5]} 21. Qd2
{[%clk 0:02:09.9]} 21... h6 {[%clk 0:02:16.6]} 22. h3 {[%clk 0:02:02.3]} 22...
Rec7 {[%clk 0:02:09]} 23. Rb1 {[%clk 0:01:58.7]} 23... a5 {[%clk 0:02:01.9]} 24.
Ne5 {[%clk 0:01:54.8]} 24... Qa7 {[%clk 0:01:47.4]} 25. Bb5 {[%clk 0:01:51]}
25... c4 {[%clk 0:01:44.8]} 26. Bd7 {[%clk 0:01:46.5]} 26... c3 {[%clk
0:01:40.7]} 27. Qc2 {[%clk 0:01:45.5]} 27... Rxd7 {[%clk 0:01:21.7]} 28. Nxd7
{[%clk 0:01:44.4]} 28... d4 {[%clk 0:01:14]} 29. Rbc1 {[%clk 0:00:54.5]} 29...
dxe3 {[%clk 0:01:09.9]} 30. fxe3 {[%clk 0:00:52.7]} 30... Qxe3+ {[%clk
0:01:09.4]} 31. Qf2 {[%clk 0:00:52.4]} 31... Qg5 {[%clk 0:00:55.6]} 32. Nb6
{[%clk 0:00:42.2]} 32... Nf4 {[%clk 0:00:47.3]} 33. Kh2 {[%clk 0:00:33.8]} 33...
Re8 {[%clk 0:00:35.4]} 34. Re1 {[%clk 0:00:25.3]} 34... Rxe1 {[%clk 0:00:19.7]}
35. Rxe1 {[%clk 0:00:26]} 35... Nxg2 {[%clk 0:00:17.8]} 36. Re8+ {[%clk
0:00:25.3]} 36... Kh7 {[%clk 0:00:18]} 37. Qxf7 {[%clk 0:00:25.2]} 37... Nf4
{[%clk 0:00:15.8]} 38. Qxb7 {[%clk 0:00:19.7]} 38... c2 {[%clk 0:00:12.1]} 39.
Qe4+ {[%clk 0:00:19.6]} 39... Qg6 {[%clk 0:00:09.9]} 40. Qxg6+ {[%clk 0:00:19]}
40... Kxg6 {[%clk 0:00:09.3]} 41. Rc8 {[%clk 0:00:19.3]} 41... Nd3 {[%clk
0:00:04.8]} 42. Rxc2 {[%clk 0:00:18.5]} 1-0

[Event "Early-Titled-Tuesday-Blitz-February-27-2024"]
[Site "Chess.com"]
[Date "2024.02.27"]
[Round "7"]
[White "Vse_po_kaify"]
[Black "Manukyan_Artak"]
[Result "1-0"]
[WhiteElo "2215"]
[BlackElo "2472"]
[TimeControl "180+1"]
[EndTime "9:16:55 PST"]
[Termination "Vse_po_kaify won by resignation"]

1. e4 {[%clk 0:02:26.1]} 1... c6 {[%clk 0:02:57.4]} 2. c4 {[%clk 0:02:22.4]}
2... e5 {[%clk 0:02:55.6]} 3. Nc3 {[%clk 0:02:23]} 3... d6 {[%clk 0:02:54]} 4.
g3 {[%clk 0:02:23.1]} 4... h5 {[%clk 0:02:53.1]} 5. h3 {[%clk 0:02:22.9]} 5...
h4 {[%clk 0:02:52]} 6. g4 {[%clk 0:02:23.4]} 6... g5 {[%clk 0:02:52.3]} 7. d4
{[%clk 0:02:23.7]} 7... f6 {[%clk 0:02:52.4]} 8. dxe5 {[%clk 0:02:18.7]} 8...
dxe5 {[%clk 0:02:53.3]} 9. Qc2 {[%clk 0:02:16.1]} 9... Be6 {[%clk 0:02:50.9]}
10. Be3 {[%clk 0:02:15.9]} 10... Nd7 {[%clk 0:02:49.4]} 11. O-O-O {[%clk
0:02:13.2]} 11... Qa5 {[%clk 0:02:47]} 12. Nf3 {[%clk 0:02:07.2]} 12... Bc5
{[%clk 0:02:43]} 13. Nd2 {[%clk 0:02:05.5]} 13... Bxe3 {[%clk 0:02:40.6]} 14.
fxe3 {[%clk 0:02:06.4]} 14... O-O-O {[%clk 0:02:38.7]} 15. Nb3 {[%clk
0:02:02.5]} 15... Qb6 {[%clk 0:02:33.6]} 16. Rd3 {[%clk 0:01:56.5]} 16... Ne7
{[%clk 0:02:28.3]} 17. Be2 {[%clk 0:01:52.9]} 17... Nc5 {[%clk 0:02:26]} 18.
Nxc5 {[%clk 0:01:51.8]} 18... Qxc5 {[%clk 0:02:24]} 19. Na4 {[%clk 0:01:51.8]}
19... Qa5 {[%clk 0:02:11]} 20. Rhd1 {[%clk 0:01:50.9]} 20... Rxd3 {[%clk
0:01:51.5]} 21. Rxd3 {[%clk 0:01:50]} 21... Rd8 {[%clk 0:01:42.8]} 22. Rxd8+
{[%clk 0:01:47.5]} 22... Kxd8 {[%clk 0:01:42.9]} 23. Qd2+ {[%clk 0:01:37.4]}
23... Qxd2+ {[%clk 0:01:40.4]} 24. Kxd2 {[%clk 0:01:38.3]} 24... b6 {[%clk
0:01:26.9]} 25. c5 {[%clk 0:01:33.9]} 25... b5 {[%clk 0:01:18.5]} 26. Nc3 {[%clk
0:01:32.4]} 26... b4 {[%clk 0:01:18.7]} 27. Nd1 {[%clk 0:01:24.3]} 27... Bxa2
{[%clk 0:01:18.4]} 28. Kc2 {[%clk 0:01:14.2]} 28... Be6 {[%clk 0:01:16.2]} 29.
b3 {[%clk 0:01:11.8]} 29... Ng6 {[%clk 0:01:04]} 30. Bc4 {[%clk 0:01:07.4]}
30... Nf8 {[%clk 0:00:43.5]} 31. Nb2 {[%clk 0:01:05.3]} 31... Bxc4 {[%clk
0:00:40.2]} 32. bxc4 {[%clk 0:01:06.2]} 32... Ne6 {[%clk 0:00:40.4]} 33. Nd3
{[%clk 0:01:06.3]} 33... a5 {[%clk 0:00:39.7]} 34. Kb3 {[%clk 0:01:06.7]} 34...
Kc7 {[%clk 0:00:30.8]} 35. Ka4 {[%clk 0:01:05.8]} 35... Kb7 {[%clk 0:00:31.2]}
36. Kxa5 {[%clk 0:01:04.9]} 36... b3 {[%clk 0:00:31.6]} 37. Kb4 {[%clk
0:01:04.2]} 37... Ka6 {[%clk 0:00:24.5]} 38. Kxb3 {[%clk 0:00:59.3]} 38... Ka5
{[%clk 0:00:24.7]} 39. Ka3 {[%clk 0:00:58.7]} 39... Nd8 {[%clk 0:00:17.8]} 40.
Nb4 {[%clk 0:00:56.3]} 40... Ne6 {[%clk 0:00:17]} 41. Nxc6+ {[%clk 0:00:56.4]}
41... Ka6 {[%clk 0:00:17.6]} 42. Kb4 {[%clk 0:00:56.3]} 42... Kb7 {[%clk
0:00:15.2]} 43. Na5+ {[%clk 0:00:56.4]} 43... Kc7 {[%clk 0:00:15.4]} 44. Kb5
{[%clk 0:00:54.5]} 44... Nd8 {[%clk 0:00:12.9]} 45. c6 {[%clk 0:00:51.4]} 45...
Nf7 {[%clk 0:00:13]} 46. c5 {[%clk 0:00:51.5]} 46... Nd8 {[%clk 0:00:13]} 47.
Kb4 {[%clk 0:00:46.4]} 47... Ne6 {[%clk 0:00:11.1]} 48. Kc4 {[%clk 0:00:45.8]}
48... Nd8 {[%clk 0:00:10.1]} 49. Kd5 {[%clk 0:00:45.2]} 49... Kc8 {[%clk
0:00:09]} 50. Kd6 {[%clk 0:00:43.2]} 50... f5 {[%clk 0:00:07.6]} 51. exf5 {[%clk
0:00:41.8]} 51... e4 {[%clk 0:00:07.3]} 52. f6 {[%clk 0:00:40]} 52... Nf7+
{[%clk 0:00:07.6]} 53. Ke6 {[%clk 0:00:40.1]} 53... Nh6 {[%clk 0:00:06.5]} 54.
Nb3 {[%clk 0:00:36.6]} 54... Nxg4 {[%clk 0:00:06.2]} 55. f7 {[%clk 0:00:36.5]}
1-0

[Event "Early-Titled-Tuesday-Blitz-February-27-2024"]
[Site "Chess.com"]
[Date "2024.02.27"]
[Round "7"]
[White "VinzentSpitzl"]
[Black "dpopadic"]
[Result "1-0"]
[WhiteElo "2521"]
[BlackElo "2346"]
[TimeControl "180+1"]
[EndTime "9:16:56 PST"]
[Termination "VinzentSpitzl won by checkmate"]

1. e4 {[%clk 0:02:52.6]} 1... c5 {[%clk 0:02:58.7]} 2. Nf3 {[%clk 0:02:50.6]}
2... Nc6 {[%clk 0:02:58.5]} 3. d4 {[%clk 0:02:51.1]} 3... cxd4 {[%clk
0:02:58.3]} 4. Nxd4 {[%clk 0:02:52]} 4... Nf6 {[%clk 0:02:58.3]} 5. Nc3 {[%clk
0:02:52.5]} 5... e5 {[%clk 0:02:58.3]} 6. Ndb5 {[%clk 0:02:53.2]} 6... d6 {[%clk
0:02:58.3]} 7. Bg5 {[%clk 0:02:52.8]} 7... a6 {[%clk 0:02:58.3]} 8. Na3 {[%clk
0:02:53.4]} 8... b5 {[%clk 0:02:58.3]} 9. Nd5 {[%clk 0:02:53.8]} 9... Be7 {[%clk
0:02:58.5]} 10. Bxf6 {[%clk 0:02:54.3]} 10... Bxf6 {[%clk 0:02:58.6]} 11. c4
{[%clk 0:02:54.2]} 11... b4 {[%clk 0:02:57.1]} 12. Nc2 {[%clk 0:02:54.8]} 12...
O-O {[%clk 0:02:56.4]} 13. h4 {[%clk 0:02:54.5]} 13... Rb8 {[%clk 0:02:55.1]}
14. b3 {[%clk 0:02:53.5]} 14... a5 {[%clk 0:02:54.2]} 15. g3 {[%clk 0:02:51.7]}
15... Be6 {[%clk 0:02:41.6]} 16. Bh3 {[%clk 0:02:48.8]} 16... g6 {[%clk
0:02:27]} 17. h5 {[%clk 0:02:37.1]} 17... Bxd5 {[%clk 0:02:10.3]} 18. Qxd5
{[%clk 0:02:32.8]} 18... Ne7 {[%clk 0:02:06.2]} 19. Qd3 {[%clk 0:02:28.8]} 19...
Qc7 {[%clk 0:02:01.7]} 20. Ne3 {[%clk 0:02:27.3]} 20... Bg7 {[%clk 0:01:59.3]}
21. hxg6 {[%clk 0:02:23.9]} 21... hxg6 {[%clk 0:01:58.3]} 22. Kf1 {[%clk
0:02:12.5]} 22... Nc6 {[%clk 0:01:54.7]} 23. Nd5 {[%clk 0:02:07.9]} 23... Qa7
{[%clk 0:01:53.3]} 24. Kg2 {[%clk 0:02:07.7]} 24... Nd4 {[%clk 0:01:53.1]} 25.
Bg4 {[%clk 0:02:00.3]} 25... a4 {[%clk 0:01:39.4]} 26. Qd2 {[%clk 0:01:43.1]}
26... Qb7 {[%clk 0:01:26.4]} 27. Qg5 {[%clk 0:01:41]} 27... Rfd8 {[%clk
0:01:05.9]} 28. f3 {[%clk 0:01:01.9]} 28... Ra8 {[%clk 0:00:58.2]} 29. Nf6+
{[%clk 0:00:56]} 29... Kf8 {[%clk 0:00:57.2]} 30. Rh7 {[%clk 0:00:55.5]} 30...
axb3 {[%clk 0:00:54.5]} 31. Rah1 {[%clk 0:00:53.4]} 31... Ne6 {[%clk 0:00:51.1]}
32. Bxe6 {[%clk 0:00:48]} 32... Rxa2+ {[%clk 0:00:49.4]} 33. Kh3 {[%clk
0:00:48]} 33... fxe6 {[%clk 0:00:48.4]} 34. Qxg6 {[%clk 0:00:43.9]} 34... Qf7
{[%clk 0:00:47.3]} 35. Qxf7+ {[%clk 0:00:35.6]} 35... Kxf7 {[%clk 0:00:47]} 36.
Nh5 {[%clk 0:00:36.2]} 36... Rg8 {[%clk 0:00:45.8]} 37. Rb1 {[%clk 0:00:31.2]}
37... b2 {[%clk 0:00:45.9]} 38. Kg4 {[%clk 0:00:29.6]} 38... Kg6 {[%clk
0:00:40.3]} 39. Rxg7+ {[%clk 0:00:28.4]} 39... Rxg7 {[%clk 0:00:39.4]} 40. Nxg7
{[%clk 0:00:29.3]} 40... Kxg7 {[%clk 0:00:39.2]} 41. Kg5 {[%clk 0:00:30]} 41...
Kf7 {[%clk 0:00:39.1]} 42. Kh6 {[%clk 0:00:28.5]} 42... Kf6 {[%clk 0:00:38.9]}
43. g4 {[%clk 0:00:28.7]} 43... Kf7 {[%clk 0:00:33.7]} 44. g5 {[%clk 0:00:28.1]}
44... Ra8 {[%clk 0:00:16]} 45. g6+ {[%clk 0:00:17.3]} 45... Kf6 {[%clk
0:00:15.2]} 46. g7 {[%clk 0:00:17.7]} 46... Ra1 {[%clk 0:00:09.2]} 47. g8=Q
{[%clk 0:00:14.7]} 47... Rxb1 {[%clk 0:00:08]} 48. Qf8# {[%clk 0:00:14.9]} 1-0